Cogmind - Beta 11.1 @@@ ROGUE MODE // 2022.05.02 @ 13:22:42 Player: redd Result: Destroyed by Y-45 Defender with Beam Rifle Performance ------------- Evolutions (1) 500 Regions Visited (3) 600 Robots Destroyed (26) 130 Value Destroyed (538) 538 Prototype IDs (5) 100 Alien Tech Used (0) 0 Bonus (99) 99 TOTAL SCORE: 1967 Bonus ------- Follower Combat Kills 99 Cogmind --------- Core Integrity 0/400 Matter 248/300 Energy 100/100 System Corruption 0% Temperature Cool (9) Movement Core (150) Ox2 Location -9/Materials Parts ------- > --- POWER (1) -------- (None) > --- PROPULSION (3) --- (None) > --- UTILITY (3) ------ Small Storage Unit > --- WEAPON (2) ------- Hammer Mining Claw > --- INVENTORY (8) ---- ECM Suite Hacking Suite Improved Medium Laser Improved Medium Laser Light Assault Rifle Light Cannon Rocket Launcher Mining Laser Peak State ------------ > --- POWER ------------ Improved Ion Engine > --- PROPULSION ------- Improved Hover Unit Improved Hover Unit Improved Hover Unit > --- UTILITY ---------- Small Storage Unit Hardened Light Armor Plating High-powered Tractor Beam > --- WEAPON ----------- Improved Medium Laser Improved Medium Laser > --- INVENTORY -------- Hacking Suite Light Assault Rifle Light Cannon Rocket Launcher Mini Grenade Launcher Mining Laser Hammer Mining Claw [Rating: 20] Favorites ----------- Power Ion Engine Engine Ion Engine Propulsion Wheel Wheel Wheel Hover Unit Improved Hover Unit Utility Small Storage Unit Device High-powered Tractor Beam Storage Small Storage Unit Protection Hardened Light Armor Plating Weapon Assault Rifle Energy Gun Improved Medium Laser Ballistic Gun Assault Rifle Ballistic Cannon Light Cannon Launcher Rocket Launcher Impact Weapon Hammer Slashing Weapon Mining Claw Build | -11 -10 -10 -9 ------- Run | Scr Mat Min Mat Slots Evolved 2 | . . . 2 Power . | . . . . Propulsion 1 | . . . 1 Utility 1 | . . . 1 Weapon . | . . . . Parts Attached 32 | 6 8 4 14 Power 2 | 1 . . 1 Engine 2 | 1 . . 1 Core . | . . . . Reactor . | . . . . Propulsion 14 | 2 6 1 5 Treads . | . . . . Leg . | . . . . Wheel 9 | 2 6 1 . Hover 5 | . . . 5 Flight . | . . . . Utility 6 | 1 2 . 3 Device 3 | . 2 . 1 Storage 1 | 1 . . . Processor . | . . . . Hackware . | . . . . Protection 2 | . . . 2 Artifact . | . . . . Weapon 10 | 2 . 3 5 Energy Gun 2 | . . . 2 Energy Cannon . | . . . . Ballistic Gun 4 | 2 . 2 . Ballistic Cannon 1 | . . . 1 Launcher 1 | . . 1 . Special Weapon . | . . . . Impact Weapon 1 | . . . 1 Slashing Weapon 1 | . . . 1 Piercing Weapon . | . . . . Special Melee Weapon . | . . . . Unidentified Prototypes 1 | . . . 1 Parts Lost 9 | . 1 2 6 Power 1 | . . . 1 Propulsion 4 | . . 1 3 Utility 3 | . 1 . 2 Weapon 1 | . . 1 . Highest Loss Streak 6 | . 1 2 6 To Critical Strikes 1 | . . . 1 Average Slot Usage (%) 94 | . 97 97 85 Engine 12 | . 14 14 9 Wheel 21 | . 28 28 . Hover 7 | . . . 27 Device 11 | . 11 14 10 Storage 13 | . 14 14 11 Energy Gun 3 | . . . 14 Ballistic Gun 19 | . 28 20 4 Launcher 1 | . . 5 . Naked Turns . | . . . . Heaviest Build 24 | 14 15 16 24 Greatest Support 32 | 32 32 20 21 Greatest Overweight (x) 4 | . . . 4 Average Overweight (x) . | . . . . Largest Inventory Capacity 8 | 8 8 8 8 Average Capacity 7 | 6 8 8 8 Most Carried 8 | 2 8 8 8 Average Carried 7 | . 7 7 7 Final Capacity 8 | 8 8 8 8 Final Carried 8 | . 8 8 8 Class Distribution -------------------- 100% | Mutant Dominant Class ---------------- Mutant | -10/Materials Mutant | -10/Mines Mutant | -9/Materials Resources | -11 -10 -10 -9 ----------- Run | Scr Mat Min Mat Matter Collected 864 | 188 404 88 184 Remotely 630 | . 358 88 184 Salvage Created 662 | . 419 124 119 Parts 60 | . 32 14 14 Haulers Intercepted . | . . . . Recyclers Shooed . | . . . . Parts Field Recycled . | . . . . Retrieved Matter . | . . . . Parts Self-Destructed . | . . . . Prevented . | . . . . Kills | -11 -10 -10 -9 ------- Run | Scr Mat Min Mat Combat Hostiles Destroyed 20 | . 11 5 4 Melee 3 | . . . 3 Guns 17 | . 11 5 1 Classes Destroyed 4 | . 4 . . Operator 1 | . 1 . . Watcher 5 | . 3 . 2 Swarmer 11 | . 6 3 2 Grunt 9 | . 5 2 2 Best Kill Streak 4 | . 4 3 3 Combat Bots Only 3 | . 3 3 3 Max Kills in Single Turn 2 | . 2 1 1 Gunslinging 1 | . 1 . . Exploded . | . . . . Melee 1 | . . . 1 Uniques/NPCs Destroyed . | . . . . Combat | -11 -10 -10 -9 -------- Run | Scr Mat Min Mat Damage Taken 1566 | . 426 215 925 Core 557 | . 118 29 410 Absorbed by Shields . | . . . . Core Remaining (%) 70 | 100 . 41 . Volleys Fired 81 | . 42 24 15 Largest 2 | . 2 2 2 Hottest 112 | . 40 40 112 Shots Fired 145 | . 84 32 29 Gun 145 | . 84 32 29 Cannon . | . . . . Launcher . | . . . . Special . | . . . . Kinetic 121 | . 84 32 5 Thermal 24 | . . . 24 Explosive . | . . . . Electromagnetic . | . . . . Robot Hit Streak 7 | . 7 7 4 Robot Miss Streak 4 | . 4 4 4 Penetration Max . | . . . . Secondary Targets 4 | . 2 1 1 Max Gunslinging Chain 1 | . 1 1 1 Shots Hit Robots 83 | . 47 16 20 Core Hits 35 | . 20 9 6 Critical Kills 2 | . 1 1 . Critical Parts Destroyed 1 | . 1 . . Critical Strikes 3 | . 2 1 . Destroy 3 | . 2 1 . Melee Attacks 14 | . . . 14 Impact 2 | . . . 2 Slashing 12 | . . . 12 Piercing . | . . . . Sneak Attacks . | . . . . Combat Hostiles . | . . . . Follow-up Attacks 2 | . . . 2 Damage Inflicted 1103 | . 554 161 388 Guns 956 | . 554 161 241 Cannons . | . . . . Explosions . | . . . . Melee 147 | . . . 147 Ramming . | . . . . Kinetic 732 | . 554 161 17 Thermal 224 | . . . 224 Explosive . | . . . . Electromagnetic . | . . . . Impact . | . . . . Slashing 147 | . . . 147 Piercing . | . . . . Highest Corruption 2 | . 2 2 . Average Corruption 2 | . 2 2 . Corruption Purged . | . . . . Corruption Blocked . | . . . . Effects 9 | . 1 8 . Message Errors 1 | . . 1 . Matter Fused 1 | . . 1 . Heat Flow Errors 1 | . . 1 . Energy Discharges 2 | . . 2 . Data Loss (minor) 3 | . 1 2 . Data Loss (major) 1 | . . 1 . Overload Shots . | . . . . Overflow Damage . | . . . . Projectiles . | . . . . Explosions . | . . . . Melee . | . . . . Knockbacks . | . . . . Impact . | . . . . Kinetic . | . . . . Secondary . | . . . . Self-Inflicted Damage . | . . . . Shots . | . . . . Rammed . | . . . . Targets Rammed . | . . . . Kicked . | . . . . Crushed . | . . . . Highest Temperature 621 | . 9 218 621 Average Temperature 202 | . 3 69 264 Received Heat Transfer 498 | . 180 84 234 Effects 14 | . . . 14 Shutdowns 2 | . . . 2 Interference 3 | . . . 3 Matter Decay 2 | . . . 2 Short Circuit 2 | . . . 2 Damage (minor) 1 | . . . 1 Damage (major) 2 | . . . 2 Damage (core) 2 | . . . 2 Siege Activations . | . . . . Robots Corrupted . | . . . . Combat Hostiles . | . . . . Parts Fried . | . . . . Impact Corruptions . | . . . . Robots Melted . | . . . . Combat Hostiles . | . . . . Parts Melted 1 | . . . 1 Heat Transferred 481 | . . . 481 Parts Sabotaged . | . . . . Parts Stolen . | . . . . Parts Stripped . | . . . . Power Chain Reactions . | . . . . Missiles Intercepted . | . . . . Alert | -11 -10 -10 -9 ------- Run | Scr Mat Min Mat Peak Influence 221 | . 221 184 198 Initial 71 | . . 54 71 Average 103 | . 72 148 124 Maximum Alert Level 1 | . 1 . . Low Security (%) 99 | 100 99 100 100 Level 1 . | . . . . Level 2 . | . . . . Level 3 . | . . . . Level 4 . | . . . . Level 5 . | . . . . High Security . | . . . . Max Security . | . . . . Squads Dispatched 4 | . 3 . 1 Investigation 2 | . 2 . . Extermination . | . . . . Reinforcement 2 | . 1 . 1 Assault . | . . . . Garrison . | . . . . Intercept . | . . . . Searches Triggered . | . . . . Construction Impeded . | . . . . Haulers Reinforced . | . . . . Active Scanning Responses . | . . . . Cargo Convoy Interrupts . | . . . . Stealth | -11 -10 -10 -9 --------- Run | Scr Mat Min Mat Distress Signals 3 | . 1 . 2 Communications Jammed . | . . . . Distress Signals . | . . . . Times Spotted 32 | . 16 5 11 Peak Tracking Total 6 | . 4 3 6 Tactical Retreats 3 | . 2 1 . Traps | -11 -10 -10 -9 ------- Run | Scr Mat Min Mat Traps Triggered 4 | . 2 . 2 Indirectly . | . . . . Trap Hack Attempts . | . . . . Triggered . | . . . . Disarmed . | . . . . Reprogrammed . | . . . . Reused . | . . . . Traps Extracted . | . . . . Installed . | . . . . Triggered . | . . . . Machines | -11 -10 -10 -9 ---------- Run | Scr Mat Min Mat Machines Disabled . | . . . . Max in Single Turn . | . . . . Machines Sabotaged . | . . . . Garrisons Compromised . | . . . . Overloaded Fab Kills . | . . . . Hacking | -11 -10 -10 -9 --------- Run | Scr Mat Min Mat Machines Accessed 4 | . 3 . 1 Terminals 3 | . 3 . . Fabricators . | . . . . Repair Stations . | . . . . Recycling Units . | . . . . Scanalyzers 1 | . . . 1 Garrison Access . | . . . . Total Hacks 13 | . 11 . 2 Successful 10 | . 8 . 2 Failed 3 | . 3 . . Catastrophic . | . . . . Database Lockouts . | . . . . Manual 7 | . 7 . . Terminals 11 | . 11 . . Fabricators . | . . . . Repair Stations . | . . . . Recycling Units . | . . . . Scanalyzers 2 | . . . 2 Garrison Access . | . . . . Terminal Hacks 4 | . 4 . . Prototype ID Bank 3 | . 3 . . Zone Layout 1 | . 1 . . Fabricator Hacks . | . . . . Repair Station Hacks . | . . . . Recycling Unit Hacks . | . . . . Scanalyzer 2 | . . . 2 Insert Component 1 | . . . 1 Analyze 1 | . . . 1 Garrison Access Hacks . | . . . . Unauthorized Hacks 4 | . 4 . . Terminals 4 | . 4 . . Track 1 | . 1 . . Botnet 3 | . 3 . . Fabricators . | . . . . Repair Stations . | . . . . Recycling Units . | . . . . Scanalyzers . | . . . . Garrison Access . | . . . . Data Cores Recovered . | . . . . Used . | . . . . Hacking Detections 3 | . 3 . . Full Trace Events 1 | . 1 . . Feedback Events . | . . . . Feedback Blocked . | . . . . Robot Schematics Acquired . | . . . . Robots Built . | . . . . Authchips . | . . . . Time . | . . . . Total Robot Build Rating . | . . . . Part Schematics Acquired 1 | . . . 1 Parts Built . | . . . . Authchips . | . . . . Time . | . . . . Total Part Build Rating . | . . . . Parts Repaired . | . . . . Time . | . . . . Parts Recycled . | . . . . Recycled Matter . | . . . . Retrieved Matter . | . . . . Retrieved Components . | . . . . Parts Scanalyzed 1 | . . . 1 Part Schematics Acquired 1 | . . . 1 Parts Damaged . | . . . . Bothacking | -11 -10 -10 -9 ------------ Run | Scr Mat Min Mat Used RIF Installer . | . . . . Robots Hacked . | . . . . Non-combat . | . . . . Combat . | . . . . Robot Hacks Applied . | . . . . Relay Couplers Released . | . . . . Fabnet Peak Effective % . | . . . . Robots Rewired . | . . . . Allies Hacked . | . . . . Hacks Repelled . | . . . . Allies | -11 -10 -10 -9 -------- Run | Scr Mat Min Mat Total Allies 2 | . . 2 . Largest Group 2 | . . 2 2 Highest-Rated Group 46 | . . 46 46 Highest-Rated Ally 31 | . . 31 31 Total Orders . | . . . . Ally Attacks 13 | . . . 13 Total Damage 208 | . . . 208 Kills 4 | . . . 4 Allies Corrupted . | . . . . Allies Melted . | . . . . Intel | -11 -10 -10 -9 ------- Run | Scr Mat Min Mat Robot Analysis Total . | . . . . Derelict Logs Recovered . | . . . . Drone Launches . | . . . . Drone Recoveries . | . . . . Exploration | -11 -10 -10 -9 ------------- Run | Scr Mat Min Mat Turns Passed 1386 | 53 601 391 341 Spaces Moved 1182 | 42 483 367 290 Core 4 | 1 . . 3 Treads . | . . . . Legs . | . . . . Wheels 897 | 41 483 367 6 Hover 281 | . . . 281 Flight . | . . . . Fastest Speed 50 | 50 80 80 52 Average Speed 81 | 98 88 80 67 Slowest Speed 250 | 100 100 80 250 Overloaded Moves . | . . . . Propulsion Burnouts . | . . . . Robots Hopped . | . . . . Cave-ins Triggered . | . . . . Exploration Rate (%) 42 | 4 77 70 19 Regions Visited 3 Branch Regions 1 Pre-discovered Areas . | . . . . Known Exits Taken . | . . . . Unknown Exits Taken 3 | 1 1 1 . Scrap Searched . | . . . . Spaces Dug . | . . . . Terrain Destroyed . | . . . . Melee . | . . . . Projectile . | . . . . AOE . | . . . . Terrain Rammed . | . . . . Walls Destroyed . | . . . . Machines Disabled . | . . . . Actions | -11 -10 -10 -9 --------- Run | Scr Mat Min Mat Total 1447 | 53 577 435 382 Wait 97 | . 23 36 38 Move 1179 | 41 482 366 290 Hop . | . . . . Pick Up 25 | 6 13 3 3 Fast Attach 9 | . . 1 8 Attach 13 | 6 2 3 2 Detach 2 | . . . 2 Swap 10 | . 6 . 4 Drop 19 | . 9 2 8 Fire 81 | . 42 24 15 Melee 12 | . . . 12 Ram . | . . . . Kick . | . . . . Crush . | . . . . Escape Stasis . | . . . . Rewire . | . . . . Trap . | . . . . Miscellaneous . | . . . . Route ------- -11/Scrapyard -10/Materials (discovered 4 exits: *Mat x2 / [*Min x2]) -10/Mines (discovered 2 exits: *Mat x2) -9/Materials History --------- Turn | Location | Event 10 | -11/Scrapyard | Discovered new exit (range 16) 54 | -11/Scrapyard | Entered Materials 235 | -10/Materials | Discovered new exit (range 3) 304 | -10/Materials | Build established: Mutant 361 | -10/Materials | Discovered new exit (range 6) 439 | -10/Materials | Discovered new exit (range 16) 645 | -10/Materials | Discovered new exit (range 7) 655 | -10/Materials | Entered Mines 677 | -10/Mines | Core integrity fell below 50% 849 | -10/Mines | Discovered new exit (range 5) 894 | -10/Mines | Received a Rocket Launcher from a helpful Derelict 940 | -10/Mines | Discovered new exit (range 13) 1046 | -10/Mines | Entered Materials 1046 | -9/Materials | Accompanied by 2 allies 1046 | -9/Materials | Evolved 2 slots: Propulsion x1, Utility x1 1052 | -9/Materials | Led the pair of lost Derelicts to an unsafe place 1358 | -9/Materials | Core integrity fell below 50% 1372 | -9/Materials | Core integrity fell below 20% 1387 | -9/Materials | Destroyed by Y-45 Defender with Beam Rifle Last Messages --------------- 01347_ Critical hit (Destroy). 01347_ Imp. Hover Unit destroyed. 01348_ Imp. Hover Unit broken. 01348_ Overheating: Short circuit. 01348_ Broken Imp. Ion Engine destroyed. 01349_ Broken Imp. Hover Unit destroyed. 01350_ Hpw. Tractor Beam destroyed. 01352_ S-10 Pest destroyed. 01356_ R-06 Scavenger collects Lgt. Assault Rifle. 01357_ Hrd. Light Armor Plating destroyed. 01360_ R-06 Scavenger collects Flight Unit. 01370_ S-10 Pest destroyed. 01370_ G-34 Mercenary destroyed. 01372_ K-01 Serf collects debris. 01373_ Hammer follow-up attack on S-10 Pest. 01375_ K-01 Serf destroyed. 01377_ K-01 Serf collects debris. 01382_ S-10 Pest destroyed. 01384_ Critical hit (Burn: +37). 01384_ K-01 Serf collects debris. Map ----- +----------------------------------------------------+ | ???????????????????????????????????????# ## "" # | | ???????????????????????????????????????# ### """# | | ???????????????????????????????????????# #?# ]S"# | | ???????????????????????????????????????# #?# # | | ???????????????????????????????????????# ######### | | ???????????????????????????????????????# # | | ???????????????????????????????????????# # | | ???????????????????????????????????????# # | | ???????????????????????????????????????# # """ | | ???????????????????????????????????????# # """"" | | ???????????????????????????????????????# # """"" | | ???????????????????????????????????????# # """"" | | ???????????????????????????????????????# # """ | | ???????????????????????????????????????# # | | ???????????????????????????????????????# ######### | | ???????????????????????????????????????# #???????? | | ???????????????????????????????????????# #???????? | | ???????????????????????????????????????# #???????? | | ??????????????????????????????????????## ####????? | | ???????????????????????########???????# ###### | | ???????????????????????# ######### | | ???????????????????????# """ /u | | ???????????????????????# """ ######### | | ???????????????????????# %""" #???????# ###### | | ???????????????????????#Y%=%= #???????#######?# | | ???????????????????# ??#%@kk= #???????????????# " | | ???????????????????+ ###/########## #???# " | | ???????????????????# = = #???# " | | ???????????????????# % !%=[ %= #???# | | ???????????????????# *%%! [ #???# | | ???????????????????################## #???# | | ??????????????????????????????????????????????#### | | ?????????????????????????????????????????????????? | | ?????????????????????????????????????????????????? | | ?????????????????????????????????????????????????? | | ?????????????????????????????????????????????????? | | ?????????????????????????????????????????????????? | | ?????????????????????????????????????????????????? | | ?????????????????????????????????????????????????? | | ?????????????????????????????????????????????????? | | ?????????????????????????????????????????????????? | | ?????????????????????????????????????????????????? | | ?????????????????????????????????????????????????? | | ?????????????????????????????????????????????????? | | ?????????????????????????????????????????????????? | | ?????????????????????????????????????????????????? | | ?????????????????????????????????????????????????? | | ?????????????????????????????????????????????????? | | ?????????????????????????????????????????????????? | | ?????????????????????????????????????????????????? | +----------------------------------------------------+ Best States ------------- Heat Dissipation 28 Energy Generation 12 Energy Capacity 265 Matter Stores 300 Matter Capacity 300 Sight Range 16 Terrain Scan Density 10 ECM Strength 1 Armor Coverage 150 Evasion (%) 54 Item Schematics ----------------- Imp. Hover Unit | -9/Materials | Scanalyzed Robot Schematics ------------------ None Fabricated ------------ Nothing Alien Tech Used ----------------- None Achievements -------------- Use The Force Challenges ------------ None Game ------ Seed TacticalGrapheneDerivative Manual? 0 Play Time 00:27:08 Cumulative 40.1 hours Start 2022.05.02 @ 12:54:08 End 2022.05.02 @ 13:22:42 Sessions 1 Manual Loads 0 Difficulty Rogue Special Mode None Game No. 32 Rogue 32 Adventurer 0 Explorer 0 Win Type - Total 0 Types 0/0/0/0/0/0/0/0/0 Lore% 19 Gallery% 16 Achievement% 16 Wizard Run 0 Options --------- ASCII 1 Keyboard 0 Movement Mouse Keybinds 0 Fullscreen 2 Font 24/Terminus Map View 130x56 Tactical HUD 1 Map Filters NONE Filters NONE Steam 1 RUN: a0c34876-527b-4880-8511-597150f0755b